[Event "Titled Tuesday Blitz May 2 Early 2023"]
[White "Olenik Campa, Rudi"]
[Black "Nakamura, Hikaru"]
[WhiteFideId "14633264"]
[BlackFideId "2016192"]
[WhiteElo "2249"]
[BlackElo "2885"]
[Result "0-1"]
[Round "01"]
[TimeControl "180+2"]
[Date "2023.05.02"]
[WhiteClock "0:00:00"]
[BlackClock "0:00:01"]

1. e4 {[%clk 0:00:01]}  c6 {[%clk 0:00:01]} 2. d4 {[%clk 0:00:01]}  g6 {[%clk 0:00:01]} 3. Nc3 {[%clk 0:00:01]}  Bg7 {[%clk 0:00:01]} 4. Nf3 {[%clk 0:00:01]}  d5 {[%clk 0:00:01]} 5. h3 {[%clk 0:00:01]}  dxe4 {[%clk 0:00:01]} 6. Nxe4 {[%clk 0:00:01]}  Nf6 {[%clk 0:00:01]} 7. Nxf6+ {[%clk 0:00:01]}  exf6 {[%clk 0:00:01]} 8. Bc4 {[%clk 0:00:01]}  O-O {[%clk 0:00:01]} 9. O-O {[%clk 0:00:01]}  b5 {[%clk 0:00:01]} 10. Bb3 {[%clk 0:00:01]}  Nd7 {[%clk 0:00:01]} 11. Bf4 {[%clk 0:00:01]}  Nb6 {[%clk 0:00:01]} 12. c3 {[%clk 0:00:01]}  a5 {[%clk 0:00:01]} 13. a3 {[%clk 0:00:01]}  a4 {[%clk 0:00:01]} 14. Ba2 {[%clk 0:00:01]}  Re8 {[%clk 0:00:01]} 15. Qd2 {[%clk 0:00:01]}  Be6 {[%clk 0:00:01]} 16. Bxe6 {[%clk 0:00:01]}  fxe6 {[%clk 0:00:01]} 17. Rfe1 {[%clk 0:00:01]}  Qd5 {[%clk 0:00:01]} 18. Re2 {[%clk 0:00:01]}  g5 {[%clk 0:00:01]} 19. Bg3 {[%clk 0:00:01]}  h6 {[%clk 0:00:01]} 20. Rae1 {[%clk 0:00:01]}  Re7 {[%clk 0:00:01]} 21. Qc2 {[%clk 0:00:01]}  Rae8 {[%clk 0:00:01]} 22. h4 {[%clk 0:00:01]}  Kf7 {[%clk 0:00:01]} 23. h5 {[%clk 0:00:01]}  Qf5 {[%clk 0:00:01]} 24. Qxf5 {[%clk 0:00:00]}  exf5 {[%clk 0:00:01]} 25. Rxe7+ {[%clk 0:00:00]}  Rxe7 {[%clk 0:00:01]} 26. Rxe7+ {[%clk 0:00:00]}  Kxe7 {[%clk 0:00:01]} 27. Nd2 {[%clk 0:00:00]}  f4 {[%clk 0:00:01]} 28. Bh2 {[%clk 0:00:00]}  Ke6 {[%clk 0:00:01]} 29. g4 {[%clk 0:00:00]}  Kd5 {[%clk 0:00:01]} 30. b3 {[%clk 0:00:00]}  axb3 {[%clk 0:00:01]} 31. Nxb3 {[%clk 0:00:00]}  Na4 {[%clk 0:00:01]} 0-1


[Site "https://www.chess.com"]

[Event "Titled Tuesday Blitz May 2 Early 2023"]
[White "Karas, Marek"]
[Black "Yu, Yangyi"]
[WhiteFideId "14928558"]
[BlackFideId "8603820"]
[WhiteElo "2233"]
[BlackElo "2783"]
[Result "0-1"]
[Round "01"]
[TimeControl "180+2"]
[Date "2023.05.02"]
[WhiteClock "0:00:00"]
[BlackClock "0:00:00"]

1. d4 {[%clk 0:00:01]}  Nf6 {[%clk 0:00:01]} 2. Nf3 {[%clk 0:00:01]}  d5 {[%clk 0:00:01]} 3. c4 {[%clk 0:00:01]}  e6 {[%clk 0:00:01]} 4. Nc3 {[%clk 0:00:01]}  h6 {[%clk 0:00:01]} 5. cxd5 {[%clk 0:00:01]}  exd5 {[%clk 0:00:01]} 6. Bf4 {[%clk 0:00:01]}  Bd6 {[%clk 0:00:01]} 7. Bxd6 {[%clk 0:00:01]}  Qxd6 {[%clk 0:00:01]} 8. e3 {[%clk 0:00:01]}  O-O {[%clk 0:00:01]} 9. Bd3 {[%clk 0:00:01]}  Re8 {[%clk 0:00:01]} 10. Qc2 {[%clk 0:00:01]}  Nc6 {[%clk 0:00:01]} 11. a3 {[%clk 0:00:01]}  Bg4 {[%clk 0:00:01]} 12. O-O-O {[%clk 0:00:01]}  a6 {[%clk 0:00:01]} 13. h3 {[%clk 0:00:01]}  Bxf3 {[%clk 0:00:01]} 14. gxf3 {[%clk 0:00:01]}  Ne7 {[%clk 0:00:01]} 15. Kb1 {[%clk 0:00:01]}  Rac8 {[%clk 0:00:01]} 16. f4 {[%clk 0:00:01]}  c5 {[%clk 0:00:01]} 17. dxc5 {[%clk 0:00:01]}  Rxc5 {[%clk 0:00:01]} 18. Qb3 {[%clk 0:00:01]}  b5 {[%clk 0:00:01]} 19. Ne2 {[%clk 0:00:01]}  Nc6 {[%clk 0:00:01]} 20. Bc2 {[%clk 0:00:01]}  b4 {[%clk 0:00:01]} 21. axb4 {[%clk 0:00:01]}  Rb5 {[%clk 0:00:01]} 22. Nd4 {[%clk 0:00:01]}  Rxb4 {[%clk 0:00:01]} 23. Qc3 {[%clk 0:00:01]}  Nxd4 {[%clk 0:00:00]} 24. Rxd4 {[%clk 0:00:01]}  a5 {[%clk 0:00:00]} 25. Rxb4 {[%clk 0:00:00]}  axb4 {[%clk 0:00:00]} 26. Qd3 {[%clk 0:00:00]}  Ra8 {[%clk 0:00:00]} 27. Rd1 {[%clk 0:00:00]}  Qc5 {[%clk 0:00:00]} 28. Qd4 {[%clk 0:00:00]}  Qa5 {[%clk 0:00:00]} 29. Bb3 {[%clk 0:00:00]}  Qa1+ {[%clk 0:00:00]} 30. Kc2 {[%clk 0:00:00]}  Rc8+ {[%clk 0:00:00]} 31. Kd2 {[%clk 0:00:00]}  Qa6 {[%clk 0:00:00]} 32. f3 {[%clk 0:00:00]}  Qe6 {[%clk 0:00:00]} 33. Rh1 {[%clk 0:00:00]}  Qf5 {[%clk 0:00:00]} 34. Qd3 {[%clk 0:00:00]}  Qh5 {[%clk 0:00:00]} 35. Qe2 {[%clk 0:00:00]}  d4 {[%clk 0:00:00]} 36. e4 {[%clk 0:00:00]}  Qh4 {[%clk 0:00:00]} 37. Qh2 {[%clk 0:00:00]}  Nh5 {[%clk 0:00:00]} 38. f5 {[%clk 0:00:00]}  Qg5+ {[%clk 0:00:00]} 39. Ke2 {[%clk 0:00:00]}  Qe3+ {[%clk 0:00:00]} 0-1


[Site "https://www.chess.com"]

[Event "Titled Tuesday Blitz May 2 Early 2023"]
[White "Chernomordik, Pavel"]
[Black "Sarana, Alexey"]
[WhiteFideId "2804530"]
[BlackFideId "24133795"]
[WhiteElo "2193"]
[BlackElo "2714"]
[Result "0-1"]
[Round "01"]
[TimeControl "180+2"]
[Date "2023.05.02"]
[WhiteClock "0:00:00"]
[BlackClock "0:00:00"]

1. e4 {[%clk 0:00:01]}  c5 {[%clk 0:00:01]} 2. Nc3 {[%clk 0:00:01]}  d6 {[%clk 0:00:01]} 3. f4 {[%clk 0:00:01]}  g6 {[%clk 0:00:01]} 4. Nf3 {[%clk 0:00:01]}  Bg7 {[%clk 0:00:01]} 5. Bb5+ {[%clk 0:00:01]}  Bd7 {[%clk 0:00:01]} 6. Bxd7+ {[%clk 0:00:01]}  Qxd7 {[%clk 0:00:01]} 7. O-O {[%clk 0:00:01]}  Nc6 {[%clk 0:00:01]} 8. d3 {[%clk 0:00:01]}  Nh6 {[%clk 0:00:01]} 9. h3 {[%clk 0:00:01]}  f5 {[%clk 0:00:01]} 10. Re1 {[%clk 0:00:01]}  Nf7 {[%clk 0:00:01]} 11. Be3 {[%clk 0:00:01]}  O-O {[%clk 0:00:01]} 12. d4 {[%clk 0:00:01]}  cxd4 {[%clk 0:00:01]} 13. Nxd4 {[%clk 0:00:01]}  e6 {[%clk 0:00:01]} 14. Bf2 {[%clk 0:00:01]}  Rfe8 {[%clk 0:00:01]} 15. Qd3 {[%clk 0:00:01]}  Rad8 {[%clk 0:00:01]} 16. Nf3 {[%clk 0:00:01]}  e5 {[%clk 0:00:00]} 17. Bh4 {[%clk 0:00:01]}  Rc8 {[%clk 0:00:00]} 18. Nd5 {[%clk 0:00:01]}  Qe6 {[%clk 0:00:00]} 19. Rad1 {[%clk 0:00:00]}  h6 {[%clk 0:00:00]} 20. c3 {[%clk 0:00:00]}  Kh7 {[%clk 0:00:00]} 21. Nd2 {[%clk 0:00:00]}  exf4 {[%clk 0:00:00]} 22. Nxf4 {[%clk 0:00:00]}  Nce5 {[%clk 0:00:00]} 23. Qb1 {[%clk 0:00:00]}  Qd7 {[%clk 0:00:00]} 24. exf5 {[%clk 0:00:00]}  Qxf5 {[%clk 0:00:00]} 25. Qxf5 {[%clk 0:00:00]}  gxf5 {[%clk 0:00:00]} 26. Nd5 {[%clk 0:00:00]}  Nd3 {[%clk 0:00:00]} 27. Rxe8 {[%clk 0:00:00]}  Rxe8 {[%clk 0:00:00]} 28. Nc4 {[%clk 0:00:00]}  Nc5 {[%clk 0:00:00]} 29. Bg3 {[%clk 0:00:00]}  Ne4 {[%clk 0:00:00]} 30. Bh2 {[%clk 0:00:00]}  Ne5 {[%clk 0:00:00]} 31. Nce3 {[%clk 0:00:00]}  Rf8 {[%clk 0:00:00]} 32. Nf4 {[%clk 0:00:00]}  Rf7 {[%clk 0:00:00]} 33. Rf1 {[%clk 0:00:00]}  Nc5 {[%clk 0:00:00]} 34. Rd1 {[%clk 0:00:00]}  Ne4 {[%clk 0:00:00]} 35. Rf1 {[%clk 0:00:00]}  Bf8 {[%clk 0:00:00]} 36. Ne6 {[%clk 0:00:00]}  Kg6 {[%clk 0:00:00]} 37. Nxf8+ {[%clk 0:00:00]}  Rxf8 {[%clk 0:00:00]} 38. Nd5 {[%clk 0:00:00]}  Rf7 {[%clk 0:00:00]} 39. Bf4 {[%clk 0:00:00]}  Nd3 {[%clk 0:00:00]} 0-1


[Site "https://www.chess.com"]

[Event "Titled Tuesday Blitz May 2 Early 2023"]
[White "Le, Tuan Minh"]
[Black "Urbina Perez, Juan Antonio"]
[WhiteFideId "12401153"]
[BlackFideId "2217368"]
[WhiteElo "2566"]
[BlackElo "2197"]
[Result "1-0"]
[Round "01"]
[TimeControl "180+2"]
[Date "2023.05.02"]
[WhiteClock "0:00:01"]
[BlackClock "0:00:01"]

1. d4 {[%clk 0:00:01]}  d5 {[%clk 0:00:01]} 2. Nf3 {[%clk 0:00:01]}  e6 {[%clk 0:00:01]} 3. Bf4 {[%clk 0:00:01]}  Bd6 {[%clk 0:00:01]} 4. Bg3 {[%clk 0:00:01]}  b6 {[%clk 0:00:01]} 5. e3 {[%clk 0:00:01]}  Nf6 {[%clk 0:00:01]} 6. c4 {[%clk 0:00:01]}  Bxg3 {[%clk 0:00:01]} 7. hxg3 {[%clk 0:00:01]}  O-O {[%clk 0:00:01]} 8. Nc3 {[%clk 0:00:01]}  dxc4 {[%clk 0:00:01]} 9. Bxc4 {[%clk 0:00:01]}  Ba6 {[%clk 0:00:01]} 10. Bxa6 {[%clk 0:00:01]}  Nxa6 {[%clk 0:00:01]} 11. g4 {[%clk 0:00:01]}  Nd5 {[%clk 0:00:01]} 12. Qd3 {[%clk 0:00:01]} 1-0


[Site "https://www.chess.com"]

[Event "Titled Tuesday Blitz May 2 Early 2023"]
[White "Shvedova, Alexandra"]
[Black "Nguyen, Ngoc Truong Son"]
[WhiteFideId "54154782"]
[BlackFideId "12401110"]
[WhiteElo "2057"]
[BlackElo "2556"]
[Result "0-1"]
[Round "01"]
[TimeControl "180+2"]
[Date "2023.05.02"]
[WhiteClock "0:00:00"]
[BlackClock "0:00:00"]

1. e4 {[%clk 0:00:01]}  c5 {[%clk 0:00:01]} 2. Ne2 {[%clk 0:00:01]}  Nc6 {[%clk 0:00:01]} 3. d4 {[%clk 0:00:01]}  cxd4 {[%clk 0:00:01]} 4. Nxd4 {[%clk 0:00:01]}  e6 {[%clk 0:00:01]} 5. Nc3 {[%clk 0:00:01]}  a6 {[%clk 0:00:01]} 6. Be3 {[%clk 0:00:01]}  Qc7 {[%clk 0:00:01]} 7. Qf3 {[%clk 0:00:01]}  Nge7 {[%clk 0:00:01]} 8. Qg3 {[%clk 0:00:01]}  Qxg3 {[%clk 0:00:01]} 9. hxg3 {[%clk 0:00:01]}  Nxd4 {[%clk 0:00:01]} 10. Bxd4 {[%clk 0:00:01]}  Nc6 {[%clk 0:00:01]} 11. Be3 {[%clk 0:00:01]}  b5 {[%clk 0:00:01]} 12. O-O-O {[%clk 0:00:01]}  Bb7 {[%clk 0:00:01]} 13. f3 {[%clk 0:00:01]}  Be7 {[%clk 0:00:01]} 14. g4 {[%clk 0:00:01]}  d6 {[%clk 0:00:01]} 15. Be2 {[%clk 0:00:01]}  Rc8 {[%clk 0:00:01]} 16. Kb1 {[%clk 0:00:01]}  Ne5 {[%clk 0:00:01]} 17. Bd4 {[%clk 0:00:01]}  f6 {[%clk 0:00:01]} 18. Rh3 {[%clk 0:00:01]}  Kf7 {[%clk 0:00:01]} 19. Rdh1 {[%clk 0:00:01]}  h6 {[%clk 0:00:01]} 20. a3 {[%clk 0:00:01]}  Nc4 {[%clk 0:00:00]} 21. Ka2 {[%clk 0:00:01]}  d5 {[%clk 0:00:00]} 22. exd5 {[%clk 0:00:00]}  e5 {[%clk 0:00:00]} 23. Bxc4 {[%clk 0:00:00]}  Rxc4 {[%clk 0:00:00]} 24. Bf2 {[%clk 0:00:00]}  Rhc8 {[%clk 0:00:00]} 25. Rd1 {[%clk 0:00:00]}  Bxa3 {[%clk 0:00:00]} 26. Ne4 {[%clk 0:00:00]}  Bf8 {[%clk 0:00:00]} 27. c3 {[%clk 0:00:00]}  Rd8 {[%clk 0:00:00]} 28. d6 {[%clk 0:00:00]}  Bxe4 {[%clk 0:00:00]} 29. fxe4 {[%clk 0:00:00]}  Rxd6 {[%clk 0:00:00]} 30. Rxd6 {[%clk 0:00:00]}  Bxd6 {[%clk 0:00:00]} 31. Rd3 {[%clk 0:00:00]}  Ke6 {[%clk 0:00:00]} 32. Re3 {[%clk 0:00:00]}  Bc5 {[%clk 0:00:00]} 33. Re2 {[%clk 0:00:00]}  Bxf2 {[%clk 0:00:00]} 34. Rxf2 {[%clk 0:00:00]}  Rxe4 {[%clk 0:00:00]} 35. Rd2 {[%clk 0:00:00]}  Rxg4 {[%clk 0:00:00]} 0-1


[Site "https://www.chess.com"]

[Event "Titled Tuesday Blitz May 2 Early 2023"]
[White "Manukian, Artak"]
[Black "Maghsoodloo, Parham"]
[WhiteFideId "13301373"]
[BlackFideId "12539929"]
[WhiteElo "2130"]
[BlackElo "2647"]
[Result "0-1"]
[Round "01"]
[TimeControl "180+2"]
[Date "2023.05.02"]
[WhiteClock "0:00:00"]
[BlackClock "0:00:00"]

1. e4 {[%clk 0:00:01]}  c5 {[%clk 0:00:01]} 2. Nf3 {[%clk 0:00:01]}  d6 {[%clk 0:00:01]} 3. Bb5+ {[%clk 0:00:01]}  Nd7 {[%clk 0:00:01]} 4. O-O {[%clk 0:00:01]}  Nf6 {[%clk 0:00:01]} 5. Re1 {[%clk 0:00:01]}  a6 {[%clk 0:00:01]} 6. Bd3 {[%clk 0:00:01]}  b6 {[%clk 0:00:01]} 7. c3 {[%clk 0:00:01]}  Bb7 {[%clk 0:00:01]} 8. Bc2 {[%clk 0:00:01]}  e6 {[%clk 0:00:01]} 9. d4 {[%clk 0:00:01]}  Be7 {[%clk 0:00:01]} 10. Bg5 {[%clk 0:00:01]}  h6 {[%clk 0:00:01]} 11. Bh4 {[%clk 0:00:01]}  Rc8 {[%clk 0:00:01]} 12. Nbd2 {[%clk 0:00:01]}  O-O {[%clk 0:00:01]} 13. Rc1 {[%clk 0:00:01]}  b5 {[%clk 0:00:01]} 14. e5 {[%clk 0:00:01]}  Ne8 {[%clk 0:00:01]} 15. Bxe7 {[%clk 0:00:01]}  Qxe7 {[%clk 0:00:01]} 16. Be4 {[%clk 0:00:01]}  Bxe4 {[%clk 0:00:01]} 17. Nxe4 {[%clk 0:00:01]}  dxe5 {[%clk 0:00:01]} 18. dxe5 {[%clk 0:00:01]}  Nb6 {[%clk 0:00:01]} 19. Qe2 {[%clk 0:00:01]}  Rd8 {[%clk 0:00:01]} 20. Rcd1 {[%clk 0:00:01]}  Rd5 {[%clk 0:00:01]} 21. b3 {[%clk 0:00:01]}  c4 {[%clk 0:00:01]} 22. b4 {[%clk 0:00:01]}  Rxd1 {[%clk 0:00:01]} 23. Rxd1 {[%clk 0:00:01]}  Nd5 {[%clk 0:00:01]} 24. Nd4 {[%clk 0:00:01]}  Qc7 {[%clk 0:00:01]} 25. Nf3 {[%clk 0:00:00]}  Nf4 {[%clk 0:00:01]} 26. Qe3 {[%clk 0:00:00]}  Nd3 {[%clk 0:00:01]} 27. Nc5 {[%clk 0:00:00]}  Nxc5 {[%clk 0:00:01]} 28. Qxc5 {[%clk 0:00:00]}  Qxc5 {[%clk 0:00:01]} 29. bxc5 {[%clk 0:00:00]}  Nc7 {[%clk 0:00:01]} 30. Rd7 {[%clk 0:00:00]}  Nd5 {[%clk 0:00:01]} 31. c6 {[%clk 0:00:00]}  Nxc3 {[%clk 0:00:00]} 32. c7 {[%clk 0:00:00]}  Nd5 {[%clk 0:00:00]} 33. Nd4 {[%clk 0:00:00]}  b4 {[%clk 0:00:00]} 34. Kf1 {[%clk 0:00:00]}  a5 {[%clk 0:00:00]} 35. Ke1 {[%clk 0:00:00]}  a4 {[%clk 0:00:00]} 36. Kd1 {[%clk 0:00:00]}  b3 {[%clk 0:00:00]} 37. axb3 {[%clk 0:00:00]}  cxb3 {[%clk 0:00:00]} 38. Kc1 {[%clk 0:00:00]}  Re8 {[%clk 0:00:00]} 39. Kb2 {[%clk 0:00:00]}  Kf8 {[%clk 0:00:00]} 40. Nb5 {[%clk 0:00:00]}  Nb6 {[%clk 0:00:00]} 41. Rd8 {[%clk 0:00:00]}  Ke7 {[%clk 0:00:00]} 42. Rxe8+ {[%clk 0:00:00]}  Kxe8 {[%clk 0:00:00]} 43. Nd6+ {[%clk 0:00:00]}  Kd7 {[%clk 0:00:00]} 0-1


[Site "https://www.chess.com"]

[Event "Titled Tuesday Blitz May 2 Early 2023"]
[White "Shimanov, Aleksandr"]
[Black "Devaev, Alexander"]
[WhiteFideId "4198603"]
[BlackFideId "4169395"]
[WhiteElo "2631"]
[BlackElo "2204"]
[Result "1-0"]
[Round "01"]
[TimeControl "180+2"]
[Date "2023.05.02"]
[WhiteClock "0:00:00"]
[BlackClock "0:00:00"]

1. g3 {[%clk 0:00:01]}  c5 {[%clk 0:00:01]} 2. c4 {[%clk 0:00:01]}  Nc6 {[%clk 0:00:01]} 3. Bg2 {[%clk 0:00:01]}  Nf6 {[%clk 0:00:01]} 4. Nf3 {[%clk 0:00:01]}  e6 {[%clk 0:00:01]} 5. O-O {[%clk 0:00:01]}  Be7 {[%clk 0:00:01]} 6. d4 {[%clk 0:00:01]}  cxd4 {[%clk 0:00:01]} 7. Nxd4 {[%clk 0:00:01]}  O-O {[%clk 0:00:01]} 8. Nc3 {[%clk 0:00:01]}  Ne5 {[%clk 0:00:01]} 9. b3 {[%clk 0:00:01]}  d6 {[%clk 0:00:01]} 10. Bb2 {[%clk 0:00:01]}  a6 {[%clk 0:00:01]} 11. Rc1 {[%clk 0:00:01]}  Qc7 {[%clk 0:00:01]} 12. e3 {[%clk 0:00:01]}  Rb8 {[%clk 0:00:01]} 13. Qe2 {[%clk 0:00:01]}  Re8 {[%clk 0:00:01]} 14. Rfd1 {[%clk 0:00:01]}  Bf8 {[%clk 0:00:01]} 15. h3 {[%clk 0:00:01]}  h6 {[%clk 0:00:01]} 16. Qd2 {[%clk 0:00:01]}  Ned7 {[%clk 0:00:01]} 17. f4 {[%clk 0:00:01]}  Nc5 {[%clk 0:00:01]} 18. g4 {[%clk 0:00:01]}  Nh7 {[%clk 0:00:01]} 19. Nce2 {[%clk 0:00:00]}  e5 {[%clk 0:00:01]} 20. Nc2 {[%clk 0:00:00]}  Bd7 {[%clk 0:00:00]} 21. Nc3 {[%clk 0:00:00]}  Bc6 {[%clk 0:00:00]} 22. Nd5 {[%clk 0:00:00]}  Qd8 {[%clk 0:00:00]} 23. b4 {[%clk 0:00:00]}  Ne6 {[%clk 0:00:00]} 24. Kh2 {[%clk 0:00:00]}  Nc7 {[%clk 0:00:00]} 25. f5 {[%clk 0:00:00]}  Nxd5 {[%clk 0:00:00]} 26. cxd5 {[%clk 0:00:00]}  Ba4 {[%clk 0:00:00]} 27. Rf1 {[%clk 0:00:00]}  Bxc2 {[%clk 0:00:00]} 28. Rxc2 {[%clk 0:00:00]}  Be7 {[%clk 0:00:00]} 29. Rfc1 {[%clk 0:00:00]}  Bg5 {[%clk 0:00:00]} 30. a4 {[%clk 0:00:00]}  Qb6 {[%clk 0:00:00]} 31. Re1 {[%clk 0:00:00]}  Rbc8 {[%clk 0:00:00]} 32. Rxc8 {[%clk 0:00:00]}  Rxc8 {[%clk 0:00:00]} 33. Bf1 {[%clk 0:00:00]}  Nf6 {[%clk 0:00:00]} 34. a5 {[%clk 0:00:00]}  Qd8 {[%clk 0:00:00]} 35. Bg2 {[%clk 0:00:00]}  Nd7 {[%clk 0:00:00]} 36. Rc1 {[%clk 0:00:00]}  Rc7 {[%clk 0:00:00]} 37. Bf3 {[%clk 0:00:00]}  Qc8 {[%clk 0:00:00]} 38. Kg2 {[%clk 0:00:00]}  Rc4 {[%clk 0:00:00]} 39. Be2 {[%clk 0:00:00]}  Rc7 {[%clk 0:00:00]} 40. Rxc7 {[%clk 0:00:00]}  Qxc7 {[%clk 0:00:00]} 41. Qc1 {[%clk 0:00:00]}  Qd8 {[%clk 0:00:00]} 42. Bf3 {[%clk 0:00:00]}  Nf6 {[%clk 0:00:00]} 43. Qc3 {[%clk 0:00:00]}  Nd7 {[%clk 0:00:00]} 44. e4 {[%clk 0:00:00]}  Bf4 {[%clk 0:00:00]} 45. Be2 {[%clk 0:00:00]}  Qh4 {[%clk 0:00:00]} 46. Qf3 {[%clk 0:00:00]}  Qd8 {[%clk 0:00:00]} 47. Qf2 {[%clk 0:00:00]}  Qc7 {[%clk 0:00:00]} 48. Bd3 {[%clk 0:00:00]}  Nf6 {[%clk 0:00:00]} 49. Qc2 {[%clk 0:00:00]}  Qd8 {[%clk 0:00:00]} 50. Bc3 {[%clk 0:00:00]}  Nh7 {[%clk 0:00:00]} 51. Be1 {[%clk 0:00:00]}  Bg5 {[%clk 0:00:00]} 52. Bf2 {[%clk 0:00:00]}  Bh4 {[%clk 0:00:00]} 53. Bb6 {[%clk 0:00:00]}  Qg5 {[%clk 0:00:00]} 54. Qe2 {[%clk 0:00:00]}  Qc1 {[%clk 0:00:00]} 55. Be3 {[%clk 0:00:00]}  Qc3 {[%clk 0:00:00]} 56. Qd2 {[%clk 0:00:00]}  Qc7 {[%clk 0:00:00]} 57. Qc2 {[%clk 0:00:00]}  Qd8 {[%clk 0:00:00]} 58. Qc4 {[%clk 0:00:00]}  Bg5 {[%clk 0:00:00]} 59. Bf2 {[%clk 0:00:00]}  Bh4 {[%clk 0:00:00]} 60. Be3 {[%clk 0:00:00]}  Nf6 {[%clk 0:00:00]} 61. Bb6 {[%clk 0:00:00]}  Qf8 {[%clk 0:00:00]} 62. Qc7 {[%clk 0:00:00]}  h5 {[%clk 0:00:00]} 63. Kf3 {[%clk 0:00:00]}  hxg4+ {[%clk 0:00:00]} 64. hxg4 {[%clk 0:00:00]}  g6 {[%clk 0:00:00]} 65. Qd8 {[%clk 0:00:00]}  Qxd8 {[%clk 0:00:00]} 66. Bxd8 {[%clk 0:00:00]}  gxf5 {[%clk 0:00:00]} 67. gxf5 {[%clk 0:00:00]}  Bg5 {[%clk 0:00:00]} 68. Bc7 {[%clk 0:00:00]}  Ne8 {[%clk 0:00:00]} 69. Bb8 {[%clk 0:00:00]}  Bd8 {[%clk 0:00:00]} 70. Ke2 {[%clk 0:00:00]}  Bc7 {[%clk 0:00:00]} 71. Ba7 {[%clk 0:00:00]}  Kf8 {[%clk 0:00:00]} 72. Bf2 {[%clk 0:00:00]}  Bd8 {[%clk 0:00:00]} 73. Kd2 {[%clk 0:00:00]}  Nc7 {[%clk 0:00:00]} 74. Kc3 {[%clk 0:00:00]}  Nb5+ {[%clk 0:00:00]} 75. Kc4 {[%clk 0:00:00]}  Bg5 {[%clk 0:00:00]} 76. Bb6 {[%clk 0:00:00]}  Ke7 {[%clk 0:00:00]} 77. Kb3 {[%clk 0:00:00]}  Kd7 {[%clk 0:00:00]} 78. Bb1 {[%clk 0:00:00]}  Bd2 {[%clk 0:00:00]} 79. Bf2 {[%clk 0:00:00]}  Bf4 {[%clk 0:00:00]} 80. Bd3 {[%clk 0:00:00]}  Bd2 {[%clk 0:00:00]} 81. Kc4 {[%clk 0:00:00]}  Bf4 {[%clk 0:00:00]} 82. Be2 {[%clk 0:00:00]}  Bd2 {[%clk 0:00:00]} 83. Bd1 {[%clk 0:00:00]}  Bg5 {[%clk 0:00:00]} 84. Ba4 {[%clk 0:00:00]} 1-0


[Site "https://www.chess.com"]

[Event "Titled Tuesday Blitz May 2 Early 2023"]
[White "Pranesh M"]
[Black "Korelskiy, Egor"]
[WhiteFideId "35028600"]
[BlackFideId "34329064"]
[WhiteElo "2437"]
[BlackElo "2186"]
[Result "1-0"]
[Round "01"]
[TimeControl "180+2"]
[Date "2023.05.02"]
[WhiteClock "0:00:01"]
[BlackClock "0:00:00"]

1. e4 {[%clk 0:00:01]}  c5 {[%clk 0:00:01]} 2. Nf3 {[%clk 0:00:01]}  e6 {[%clk 0:00:01]} 3. d4 {[%clk 0:00:01]}  cxd4 {[%clk 0:00:01]} 4. Nxd4 {[%clk 0:00:01]}  a6 {[%clk 0:00:01]} 5. Bd3 {[%clk 0:00:01]}  Nf6 {[%clk 0:00:01]} 6. O-O {[%clk 0:00:01]}  Qc7 {[%clk 0:00:01]} 7. Qe2 {[%clk 0:00:01]}  d6 {[%clk 0:00:01]} 8. Nc3 {[%clk 0:00:01]}  Be7 {[%clk 0:00:01]} 9. Kh1 {[%clk 0:00:01]}  O-O {[%clk 0:00:01]} 10. a4 {[%clk 0:00:01]}  Nbd7 {[%clk 0:00:01]} 11. f4 {[%clk 0:00:01]}  b6 {[%clk 0:00:01]} 12. f5 {[%clk 0:00:01]}  e5 {[%clk 0:00:01]} 13. Nf3 {[%clk 0:00:01]}  Bb7 {[%clk 0:00:01]} 14. Bg5 {[%clk 0:00:01]}  h6 {[%clk 0:00:01]} 15. Bh4 {[%clk 0:00:01]}  Rfe8 {[%clk 0:00:01]} 16. Nd2 {[%clk 0:00:01]}  d5 {[%clk 0:00:01]} 17. exd5 {[%clk 0:00:01]}  Nxd5 {[%clk 0:00:01]} 18. Nxd5 {[%clk 0:00:01]}  Bxd5 {[%clk 0:00:01]} 19. Bxe7 {[%clk 0:00:01]}  Rxe7 {[%clk 0:00:01]} 20. Be4 {[%clk 0:00:01]}  Nf6 {[%clk 0:00:01]} 21. Bxd5 {[%clk 0:00:01]}  Nxd5 {[%clk 0:00:01]} 22. Ne4 {[%clk 0:00:01]}  f6 {[%clk 0:00:01]} 23. Qf3 {[%clk 0:00:01]}  Rd8 {[%clk 0:00:01]} 24. Rad1 {[%clk 0:00:01]}  Red7 {[%clk 0:00:01]} 25. c3 {[%clk 0:00:01]}  Qc4 {[%clk 0:00:01]} 26. Qg4 {[%clk 0:00:01]}  Qc6 {[%clk 0:00:00]} 27. Qg6 {[%clk 0:00:01]}  Kh8 {[%clk 0:00:00]} 28. h3 {[%clk 0:00:01]}  Ne3 {[%clk 0:00:00]} 29. Rxd7 {[%clk 0:00:01]}  Qxd7 {[%clk 0:00:00]} 30. Nxf6 {[%clk 0:00:01]}  Qc6 {[%clk 0:00:00]} 31. Qh7# {[%clk 0:00:01]} 1-0


[Site "https://www.chess.com"]

[Event "Titled Tuesday Blitz May 2 Early 2023"]
[White "Lorenzo De La Riva, Lazaro"]
[Black "Swiercz, Dariusz"]
[WhiteFideId "2268809"]
[BlackFideId "1126881"]
[WhiteElo "2294"]
[BlackElo "2620"]
[Result "0-1"]
[Round "01"]
[TimeControl "180+2"]
[Date "2023.05.02"]
[WhiteClock "0:00:00"]
[BlackClock "0:00:00"]

1. e4 {[%clk 0:00:01]}  e6 {[%clk 0:00:01]} 2. d4 {[%clk 0:00:01]}  d5 {[%clk 0:00:01]} 3. Nc3 {[%clk 0:00:01]}  Bb4 {[%clk 0:00:01]} 4. e5 {[%clk 0:00:01]}  c5 {[%clk 0:00:01]} 5. a3 {[%clk 0:00:01]}  Bxc3+ {[%clk 0:00:01]} 6. bxc3 {[%clk 0:00:01]}  Ne7 {[%clk 0:00:01]} 7. Qg4 {[%clk 0:00:01]}  Kf8 {[%clk 0:00:01]} 8. h4 {[%clk 0:00:01]}  Qc7 {[%clk 0:00:01]} 9. Rh3 {[%clk 0:00:01]}  b6 {[%clk 0:00:01]} 10. Rf3 {[%clk 0:00:01]}  Nf5 {[%clk 0:00:01]} 11. a4 {[%clk 0:00:00]}  Ba6 {[%clk 0:00:01]} 12. Bb5 {[%clk 0:00:00]}  Bxb5 {[%clk 0:00:01]} 13. axb5 {[%clk 0:00:00]}  h5 {[%clk 0:00:01]} 14. Qf4 {[%clk 0:00:00]}  cxd4 {[%clk 0:00:01]} 15. Ba3+ {[%clk 0:00:00]}  Kg8 {[%clk 0:00:01]} 16. cxd4 {[%clk 0:00:00]}  Qxc2 {[%clk 0:00:01]} 17. Rc1 {[%clk 0:00:00]}  Qe4+ {[%clk 0:00:01]} 18. Ne2 {[%clk 0:00:00]}  Nd7 {[%clk 0:00:01]} 19. Qxe4 {[%clk 0:00:00]}  dxe4 {[%clk 0:00:01]} 20. Rf4 {[%clk 0:00:00]}  a6 {[%clk 0:00:01]} 21. Rc7 {[%clk 0:00:00]}  axb5 {[%clk 0:00:01]} 22. Bd6 {[%clk 0:00:00]}  Nxd6 {[%clk 0:00:00]} 23. exd6 {[%clk 0:00:00]}  Nf6 {[%clk 0:00:00]} 24. Rb7 {[%clk 0:00:00]}  Rd8 {[%clk 0:00:00]} 25. Rxb6 {[%clk 0:00:00]}  Nd5 {[%clk 0:00:00]} 26. Rxe4 {[%clk 0:00:00]}  Nxb6 {[%clk 0:00:00]} 0-1


[Site "https://www.chess.com"]